bitfinex-derivatives/quotes_ETHF0:USTF0_20250126
["timestamp","ask_amount","ask_price","bid_price","bid_amount"]
[1737880120518,3.2078,3335.3,3335.2,0.59981]
[1737880120824,3.892145,3335.3,3335.2,0.59981]
[1737880121519,0.5041,3335.6,3335.4,0.59976]
[1737880121718,1.10383,3335.6,3335.5,0.5232]
[1737880121917,1.78809917,3335.6,3335.5,0.5232]
[1737880125117,1.48721158,3335.6,3335.5,0.5232]
[1737880126426,1.78782437,3335.6,3335.5,0.5232]
[1737880126629,0.59979,3335.3,3335.1,0.59981]
[1737880126824,0.59979,3335.3,3335.2,0.5111]
[1737880127320,0.5041,3335.6,3335.0,0.4971]
[1737880127526,0.5041,3335.6,3335.1,0.5111]
[1737880127527,0.59977,3335.4,3335.1,0.5111]
[1737880127723,0.59977,3335.4,3335.2,0.5998]
[1737880127929,0.5041,3335.6,3335.1,0.5111]
[1737880128322,0.59977,3335.4,3335.2,0.59979]
[1737880129433,0.59981,3335.2,3335.1,0.5111]
[1737880131926,0.5041,3335.6,3335.0,2.05287333]
[1737880132123,0.59982,3335.1,3335.0,2.05287333]
[1737880132631,0.59982,3335.2,3335.0,2.05287333]
[1737880133727,0.5119,3335.1,3335.0,2.05287333]
[1737880135629,0.5119,3335.1,3334.9,7.27696]
[1737880135831,0.5119,3335.1,3335.0,1.5715386]
[1737880136833,0.4978,3335.3,3335.1,0.59982]
[1737880137024,0.4999,3335.6,3335.2,0.9716986]
[1737880137335,0.9737,3335.6,3335.5,0.9716986]
[1737880137535,1.65808869,3335.6,3335.5,0.9716986]
[1737880137837,1.65808869,3335.6,3335.5,1.4694986]
[1737880139536,1.65808869,3335.6,3335.5,2.0692486]
[1737880141539,1.65808869,3335.6,3335.5,1.4694986]
[1737880142231,0.68438869,3335.6,3335.5,2.0692486]
[1737880142537,0.38344858,3335.6,3335.5,2.0692486]
[1737880143436,0.98317858,3335.6,3335.5,1.4694986]
[1737880143636,1.28447225,3335.6,3335.5,1.4694986]
[1737880146543,2.25177225,3335.6,3335.5,0.4978]
[1737880146743,2.74907225,3335.6,3335.5,0.4978]
[1737880151043,2.74907225,3335.6,3335.3,0.9716986]
[1737880151044,0.59977,3335.4,3335.3,0.9716986]
[1737880151245,0.59977,3335.4,3335.3,1.4671986]
[1737880151443,1.28451225,3335.4,3335.3,1.4671986]
[1737880154547,1.28451225,3335.4,3335.3,0.9716986]
[1737880154755,0.59981,3335.2,3335.1,1.4472986]
[1737880154953,0.98399079,3335.2,3335.1,1.4472986]
[1737880155161,0.59981,3335.2,3335.1,1.4472986]
[1737880155959,0.98398203,3335.2,3335.1,1.4472986]
[1737880157043,0.98398203,3335.2,3335.1,0.9716986]
[1737880157248,1.49268203,3335.2,3335.1,0.9716986]
[1737880157450,0.59984,3335.0,3334.9,3.9236986]
[1737880157650,0.59984,3335.0,3334.9,2.952]
[1737880157651,0.98401203,3335.0,3334.9,2.952]
[1737880157851,1.28552235,3335.0,3334.9,2.952]
[1737880159956,1.28552235,3335.0,3334.9,3.9236986]
[1737880160257,1.08783,3335.1,3334.9,1.5715586]
[1737880161557,1.08783,3335.1,3334.9,0.9716986]
[1737880161755,0.59984,3335.0,3334.9,0.9716986]
[1737880162159,0.59986,3334.9,3334.8,0.4775]
[1737880162361,0.9839527,3334.9,3334.8,0.4775]
[1737880164160,0.59988,3334.8,3334.7,0.9716986]
[1737880164354,1.10778,3334.8,3334.7,0.9716986]
[1737880173864,0.5079,3334.8,3334.7,0.9716986]
[1737880174068,0.5079,3334.8,3334.6,0.59991]
[1737880175168,1.10778,3334.8,3334.5,1.07842]
[1737880176971,1.5715686,3334.9,3334.6,0.59991]
[1737880177373,1.5715686,3334.9,3334.7,1.0198]
[1737880179974,0.9716986,3334.9,3334.7,1.0198]
[1737880180169,0.38390654,3334.8,3334.7,1.0198]
[1737880180562,0.3839102,3334.8,3334.7,1.0198]
[1737880180766,0.9837902,3334.8,3334.7,1.0198]
[1737880181266,0.68525056,3334.8,3334.7,1.0198]
[1737880181564,0.3839102,3334.8,3334.7,1.0198]
[1737880182274,0.68527435,3334.8,3334.7,1.0198]
[1737880182773,0.9837902,3334.8,3334.7,1.0198]
[1737880183173,1.28515614,3334.8,3334.7,1.0198]
[1737880184079,0.68527614,3334.8,3334.5,0.4785]
[1737880184374,0.59991,3334.6,3334.5,0.4785]
[1737880184579,0.9838202,3334.6,3334.5,0.4785]
[1737880184876,1.4648202,3334.6,3334.4,1e-08]
[1737880185071,2.5707286,3334.5,3334.4,1e-08]
[1737880185671,1.9707986,3334.5,3334.4,1e-08]
[1737880186381,2.35494944,3334.5,3334.4,1e-08]
[1737880186876,2.95487944,3334.5,3334.4,1e-08]
[1737880194381,2.35494944,3334.5,3334.4,1e-08]
[1737880194580,2.95487944,3334.5,3334.4,1e-08]
[1737880195476,2.35494944,3334.5,3334.4,1e-08]
[1737880195682,0.89545084,3334.5,3334.4,1e-08]
[1737880196275,0.38415084,3334.5,3334.4,0.59995001]
[1737880200283,0.68573126,3334.5,3334.4,0.59995001]
[1737880201784,1.28566126,3334.5,3334.4,1e-08]
[1737880202784,2.30346126,3334.5,3334.4,1e-08]
[1737880202981,3.27515986,3334.5,3334.4,1e-08]
[1737880204283,0.60006,3333.8,3333.7,0.481]
[1737880204882,1.28579126,3333.8,3333.7,0.481]
[1737880205182,0.68573126,3333.8,3333.7,0.481]
[1737880205383,0.68573126,3333.8,3333.7,1.4526986]
[1737880205883,0.38415084,3333.8,3333.7,1.4526986]
[1737880206185,0.6902257,3334.1,3334.0,0.60002]
[1737880206374,0.30607486,3334.1,3334.0,1.5717186]
[1737880206579,0.00449444,3334.1,3334.0,1.5717186]
[1737880207486,0.00449444,3334.1,3334.0,4.7795186]
[1737880213090,0.00449444,3334.1,3334.0,1.5717186]
[1737880213294,0.00449444,3334.1,3334.0,4.7795186]
[1737880218892,0.00449444,3334.1,3334.0,3.80782]
[1737880221896,0.49849444,3334.1,3334.0,3.80782]
[1737880222198,0.49849444,3334.1,3334.0,3.2078]
[1737880222395,1.09849444,3334.1,3334.0,3.2078]
[1737880223300,2.07019304,3334.1,3334.0,3.2078]
[1737880223701,2.73904774,3334.1,3334.0,3.2078]
[1737880228799,2.73904774,3334.1,3333.7,1.08107]
[1737880228800,0.60003,3334.0,3333.7,4.28887]
[1737880229002,0.6688547,3333.9,3333.7,3.2078]
[1737880229307,0.6688547,3333.8,3333.4,2.43869304]
[1737880229502,0.6688547,3333.8,3333.6,0.60009]
[1737880229903,0.4728,3333.7,3333.6,0.60009]
[1737880230209,1.1416547,3333.7,3333.6,0.60009]
[1737880232106,1.1416547,3333.7,3333.6,1.5717886]
[1737880232303,0.6688547,3333.7,3333.6,1.5717886]
[1737880232609,0.00449444,3334.1,3333.6,4.7795886]
[1737880232808,0.00449444,3334.1,3334.0,0.60002]
[1737880233010,0.00449444,3334.1,3334.0,1.61022]
[1737880233309,0.00449444,3334.1,3334.0,42.90302]
[1737880233605,0.00449444,3334.1,3334.0,2.10302]
[1737880235010,0.97619304,3334.1,3334.0,2.10302]
[1737880235707,0.97619304,3334.1,3334.0,1.09282]
[1737880236701,0.97619304,3334.1,3333.7,3.9544]
[1737880236906,1.57620304,3334.1,3333.8,0.60005]
[1737880238210,0.97619304,3334.1,3333.8,0.60005]
[1737880238413,0.60002,3334.0,3333.7,4.4455]
[1737880238914,0.60004,3333.9,3333.7,4.4455]
[1737880239416,0.60003,3334.0,3333.7,5.04557]
[1737880240415,0.60003,3334.0,3333.7,1.59887]
[1737880240618,0.60003,3334.0,3333.7,0.9988]
[1737880241514,0.60004,3333.9,3333.7,0.9988]
[1737880241816,0.65642332,3333.8,3333.7,0.9988]
[1737880242716,0.65642332,3333.9,3333.7,1.59888]
[1737880243017,0.65642332,3333.8,3333.7,1.59888]
[1737880243207,0.65642332,3333.8,3333.7,0.9988]
[1737880243410,0.30119304,3333.8,3333.7,0.4911]
[1737880243612,0.65642332,3333.8,3333.7,0.4911]
[1737880244011,0.65642332,3333.8,3333.7,1.09117]
[1737880245318,1.25648332,3333.8,3333.7,0.4911]
[1737880246317,0.65642332,3333.8,3333.7,0.4911]
[1737880246520,1.25648332,3333.8,3333.7,0.4911]
[1737880248018,0.30119304,3333.8,3333.7,0.4911]
[1737880248210,0.30119304,3333.8,3333.7,1.09117]
[1737880248409,0.97619304,3334.1,3333.9,0.60004]
[1737880248410,0.30119304,3334.0,3333.9,0.60004]
[1737880248715,0.30119304,3334.0,3333.9,41.40004]
[1737880248915,0.97619304,3334.1,3333.9,41.40004]
[1737880249115,0.97619304,3334.1,3334.0,0.5178]
[1737880249419,1.27767731,3334.1,3334.0,0.5178]
[1737880249614,1.27767731,3334.1,3334.0,1.11782]
[1737880250016,0.97619304,3334.1,3334.0,1.11782]
[1737880250219,1.27770454,3334.1,3334.0,1.11782]
[1737880250617,0.30600594,3334.1,3334.0,1.11782]
[1737880250815,0.00449444,3334.1,3334.0,1.11782]
[1737880252414,1.5439,3334.7,3334.0,46.32363262]
[1737880252415,0.944,3334.7,3334.0,46.32363262]
[1737880252726,3.2078,3334.8,3334.3,2.05383262]
[1737880252912,0.944,3335.2,3334.5,3.2078]
[1737880253113,0.944,3335.2,3335.0,0.59984]
[1737880253114,0.30145286,3335.1,3335.0,0.59984]
[1737880253318,0.944,3335.2,3335.0,0.59984]
[1737880253625,0.944,3335.2,3335.1,1.10042]
[1737880253923,1.24520105,3335.2,3335.1,1.10042]
[1737880254121,0.944,3335.2,3335.1,1.10042]
[1737880256328,0.944,3335.2,3335.1,0.5006]
[1737880256823,1.24477546,3335.2,3335.1,0.5006]
[1737880257624,1.24477546,3335.2,3334.7,0.4883]
[1737880257625,0.59983,3335.1,3334.9,0.59986]
[1737880257825,0.30077546,3335.0,3334.9,0.59986]
[1737880258926,0.30077546,3335.0,3334.8,0.488]
[1737880259130,0.59991,3334.6,3334.5,3.2078]
[1737880259326,0.90068546,3334.6,3334.5,3.2078]
[1737880259527,0.30077546,3334.6,3334.5,4.30533]
[1737880260025,0.30077546,3334.9,3334.8,0.59988]
[1737880260226,0.30077546,3335.1,3334.8,0.59988]
[1737880260429,0.30077546,3335.1,3334.6,40.8]
[1737880260628,0.30077546,3335.1,3334.8,0.59986]
[1737880260827,0.30077546,3335.1,3334.9,0.59985]
[1737880261022,0.65005751,3335.1,3335.0,0.5029]
[1737880262131,0.65005751,3335.1,3335.0,1.10274]
[1737880263332,0.65005751,3335.1,3335.0,0.5029]
[1737880263722,1.24987751,3335.1,3335.0,0.5029]
[1737880264134,0.59982,3335.1,3335.0,0.5029]
[1737880264431,0.90041627,3335.1,3335.0,0.5029]
[1737880265724,0.30059627,3335.1,3334.7,0.59989]
[1737880265925,0.59986,3334.9,3334.7,0.59989]
[1737880267630,0.59986,3334.9,3334.6,44.8637]
[1737880267934,0.59983,3335.1,3334.8,0.59987]
[1737880269428,0.59984,3335.0,3334.8,0.59987]
[1737880270325,3.21229444,3335.4,3335.2,0.5998]
[1737880270529,3.21229444,3335.4,3335.3,0.4945]
[1737880270836,3.21229444,3335.4,3335.3,1.09429]
[1737880275237,0.00449444,3335.4,3335.3,1.09429]
[1737880276042,0.60427444,3335.4,3335.1,0.59981]
[1737880276237,0.4873,3335.3,3335.0,0.501]
[1737880276537,0.59982,3335.1,3335.0,0.501]
[1737880277437,0.00449444,3335.4,3335.2,0.59981]
[1737880277637,0.30543414,3335.4,3335.0,0.501]
[1737880278038,0.59981,3335.2,3335.0,0.501]
[1737880279244,0.30109145,3335.1,3335.0,0.501]
[1737880279432,0.78669145,3335.1,3335.0,0.501]
[1737880280643,1.28949145,3335.1,3335.0,0.501]
[1737880284241,1.28949145,3335.1,3335.0,1.10084]
[1737880284744,0.30109145,3335.1,3335.0,1.10084]
[1737880284946,0.30109145,3335.3,3335.2,0.59981]
[1737880291443,0.00449444,3335.4,3335.3,0.59979]
[1737880298848,0.30558589,3335.4,3335.3,0.59979]
[1737880299051,0.78038589,3335.4,3335.0,0.501]
[1737880299350,0.59979,3335.3,3335.1,0.59982]
[1737880299545,0.30109145,3335.2,3335.1,0.59982]
[1737880299754,0.30109145,3335.2,3335.0,4.05283]
[1737880301455,0.59982,3335.1,3335.0,3.453]
[1737880301654,1.72459565,3335.1,3335.0,2.952]
[1737880302856,0.59984,3335.0,3334.9,3.2078]
[1737880303059,1.9672242,3335.0,3334.9,3.2078]
[1737880305757,1.3673842,3335.0,3334.9,3.2078]
[1737880307553,1.9672242,3335.0,3334.6,41.39991]
[1737880307860,0.59988,3334.8,3334.6,41.2933]
[1737880308053,0.3488842,3334.7,3334.6,41.2933]
[1737880308354,1.0185,3335.0,3334.1,3.2078]
[1737880308355,0.59994,3334.5,3334.1,3.8078]
[1737880308568,0.8587842,3334.4,3334.1,3.8078]
[1737880308754,0.3488842,3334.3,3334.1,44.0078]
[1737880308959,0.5099,3334.4,3334.1,44.60779]
[1737880309655,0.5099,3334.4,3334.2,0.59998]
[1737880310161,0.5099,3334.4,3334.1,44.60779]
[1737880310462,0.5099,3334.4,3334.1,44.0078]
[1737880310761,0.5099,3334.4,3334.1,41.39999]
[1737880311352,0.5099,3334.4,3334.1,0.59999]
[1737880311551,0.5099,3334.4,3334.2,0.59998]
[1737880311755,0.5099,3334.4,3333.9,41.3154]
[1737880311958,0.5099,3334.4,3334.1,0.6]
[1737880312159,0.5099,3334.4,3333.9,41.3154]
[1737880312450,0.5099,3334.4,3334.2,0.59997]
[1737880312658,0.5099,3334.4,3333.9,41.3154]
[1737880312862,1.10986,3334.4,3334.0,0.60001]
[1737880313763,0.5099,3334.4,3333.9,41.3154]
[1737880313959,0.34804209,3334.3,3333.9,41.3154]
[1737880314162,0.34794051,3334.3,3333.9,41.3154]
[1737880314357,0.6,3334.2,3333.9,41.3154]
[1737880314559,0.60002,3334.0,3333.9,40.8]
[1737880314966,0.60002,3334.0,3333.6,1.10219]
[1737880315162,0.4942,3333.9,3333.7,0.60007]
[1737880315665,0.5022,3334.1,3333.6,41.3021]
[1737880315866,0.5022,3334.1,3333.9,0.60004]
[1737880316459,0.5022,3334.1,3333.8,0.60005]
[1737880316766,0.5022,3334.1,3333.6,44.5099]
[1737880316767,0.60004,3334.0,3333.6,44.5099]
[1737880316959,1.62544,3334.0,3333.7,0.60007]
[1737880317160,1.0254,3334.0,3333.7,0.60007]
[1737880317863,1.62544,3334.0,3333.6,45.10999]
[1737880318060,1.62544,3334.0,3333.6,44.5099]
[1737880318264,1.62543,3334.0,3333.6,45.10999]
[1737880318667,0.5022,3334.1,3333.7,0.60008]
[1737880318969,1.5033,3334.1,3333.6,44.5099]
[1737880319170,1.5033,3334.1,3333.9,0.60004]
[1737880320066,1.5033,3334.1,3333.8,0.60005]
[1737880320461,1.5033,3334.1,3333.6,44.5099]
[1737880320657,1.5033,3334.1,3333.8,0.60005]
[1737880321364,0.60002,3334.0,3333.6,4.30998]
[1737880321566,2.10331,3334.1,3333.7,0.60007]
[1737880322869,2.10331,3334.1,3333.7,0.60008]
[1737880324173,2.10331,3334.1,3333.6,3.7099]
[1737880324372,2.10331,3334.1,3333.7,0.60007]
[1737880325769,3.07585786,3334.1,3333.7,0.60007]
[1737880326261,3.07585786,3334.1,3333.7,0.60008]
[1737880326572,3.07585786,3334.1,3333.8,0.60005]
[1737880326875,0.5022,3334.1,3334.0,0.60002]
[1737880327070,3.2078,3334.2,3334.0,0.60002]
[1737880327466,3.2078,3334.2,3334.1,0.5103]
[1737880328574,3.2078,3334.2,3333.6,4.18034786]
[1737880328770,0.60002,3334.0,3333.8,0.60005]
[1737880329171,2.55515786,3334.1,3333.8,0.60005]
[1737880329575,2.55515786,3334.1,3333.8,0.60006]
[1737880329776,2.55515786,3334.1,3333.7,0.5103]
[1737880329975,1.95514786,3334.1,3333.9,0.60004]
[1737880330977,1.95514786,3334.1,3333.7,0.5103]
[1737880331172,2.55515786,3334.1,3333.8,0.60005]
[1737880331682,1.95514786,3334.1,3333.7,0.5103]
[1737880331979,2.55514786,3334.1,3333.9,0.60004]
[1737880332172,0.34797138,3334.0,3333.9,0.60004]
[1737880333383,0.34797138,3334.0,3333.7,0.5103]
[1737880333581,0.84317138,3334.0,3333.8,0.60005]
[1737880333780,0.34797138,3333.9,3333.8,0.60005]
[1737880334485,0.34797138,3333.9,3333.7,0.5103]
[1737880334679,0.34797138,3333.9,3333.8,0.60006]
[1737880335283,0.34797138,3333.9,3333.7,1.11037]
[1737880336982,0.34797138,3333.9,3333.7,0.5103]
[1737880337487,1.92056924,3333.9,3333.7,0.5103]
[1737880337687,0.83617138,3333.8,3333.7,0.5103]
[1737880339288,0.4882,3333.8,3333.7,0.5103]
[1737880341891,0.4882,3333.8,3333.7,1.11038]
[1737880342089,0.97254786,3333.9,3333.7,1.11038]
[1737880342591,0.4952,3334.0,3333.7,0.5103]
[1737880342785,0.97254786,3334.1,3333.9,0.60003]
[1737880342986,0.97254786,3334.1,3334.0,0.4919]
[1737880343287,1.32138284,3334.1,3334.0,1.0049]
[1737880343878,1.92138284,3334.1,3334.0,1.0049]
[1737880344084,1.92138284,3334.1,3333.7,0.5103]
[1737880344290,0.34883498,3334.0,3333.7,1.11037]
[1737880344790,0.34883498,3334.0,3333.8,0.60004]
[1737880345185,0.34883498,3334.0,3333.9,0.60004]
[1737880345383,0.34883498,3334.0,3333.8,0.60005]
[1737880347892,0.34883498,3334.0,3333.9,0.60004]
[1737880348194,0.34883498,3334.1,3334.0,0.60002]
[1737880350195,1.32138284,3334.1,3334.0,0.60002]
[1737880353696,1.83628284,3334.1,3334.0,0.60002]
[1737880353996,2.33858284,3334.1,3334.0,0.60002]
[1737880354497,2.33858284,3334.1,3333.6,4.18034786]
[1737880354689,0.34625167,3334.0,3333.9,0.60003]
[1737880354890,0.60004,3333.9,3333.7,0.60007]
[1737880355090,0.60004,3333.9,3333.6,3.2078]
[1737880355290,0.60004,3333.9,3333.7,0.60007]
[1737880355695,0.94634211,3333.8,3333.5,3.22612089]
[1737880355998,0.97254786,3333.7,3333.5,3.22612089]
[1737880356389,0.97254786,3333.7,3333.6,0.60009]
[1737880356597,0.97254786,3333.7,3333.5,2.62602089]
[1737880356794,1.57262786,3333.7,3333.5,2.62602089]
[1737880356998,0.60009,3333.6,3333.5,2.11302089]
[1737880357292,1.97854296,3333.6,3333.5,2.11302089]
[1737880358303,1.63229,3333.6,3333.5,2.11302089]
[1737880358793,1.9784201,3333.6,3333.5,2.11302089]
[1737880359187,1.9784201,3333.6,3333.5,0.485]
[1737880359598,1.63229,3333.6,3333.5,0.485]
[1737880360001,1.97835671,3333.6,3333.5,0.485]
[1737880360299,1.63229,3333.6,3333.5,0.485]
[1737880360495,1.37822025,3333.6,3333.5,0.485]
[1737880360697,1.97831025,3333.6,3333.4,0.00449444]
[1737880360903,0.97254786,3333.5,3333.4,0.00449444]
[1737880362503,1.57265786,3333.5,3333.4,0.00449444]
[1737880364510,0.97254786,3333.5,3333.4,0.00449444]
[1737880364704,1.57265786,3333.5,3333.4,0.00449444]
[1737880364903,0.97254786,3333.5,3333.4,0.00449444]
[1737880365103,0.97254786,3333.7,3333.4,0.60461444]
[1737880365304,0.97254786,3333.7,3333.5,0.4801]
[1737880365811,1.08169,3333.6,3333.5,0.4801]
[1737880367512,0.4816,3333.6,3333.5,0.4801]
[1737880369317,0.82730625,3333.6,3333.5,0.4801]
[1737880370718,1.42739625,3333.6,3333.5,0.4801]
[1737880377711,0.82730625,3333.6,3333.4,0.00449444]
[1737880377911,1.57265786,3333.5,3333.4,0.00449444]
[1737880378407,1.91843239,3333.5,3333.4,0.00449444]
[1737880378812,1.57265786,3333.5,3333.4,0.00449444]
[1737880379017,1.91843082,3333.5,3333.4,0.00449444]
[1737880380222,1.57265786,3333.5,3333.4,0.00449444]
[1737880380523,1.9184858,3333.5,3333.4,0.00449444]
[1737880389122,5.1262858,3333.5,3333.4,0.00449444]
[1737880391132,4.5261758,3333.5,3333.4,0.60462444]
[1737880391319,4.18034786,3333.5,3333.4,1.09222444]
[1737880391625,4.52653736,3333.5,3333.4,1.09222444]
[1737880392430,3.5539895,3333.5,3333.4,1.09222444]
[1737880392733,3.5539895,3333.5,3333.4,2.0647723]
[1737880393627,0.3461895,3333.5,3333.4,2.0647723]
[1737880393829,0.3461895,3333.6,3333.5,0.60011]
[1737880394426,0.3461895,3333.6,3333.4,0.49209444]
[1737880394621,0.97254786,3333.5,3333.4,0.49209444]
[1737880394929,1.31873736,3333.5,3333.4,0.49209444]
[1737880395131,1.91884736,3333.5,3333.4,0.49209444]
[1737880395432,1.31873736,3333.5,3333.4,0.49209444]
[1737880395631,1.31873736,3333.5,3333.4,1.09222444]
[1737880398629,1.31873736,3333.5,3333.4,0.00449444]
[1737880398831,1.91884736,3333.5,3333.4,0.00449444]
[1737880399633,1.57265786,3333.5,3333.4,0.00449444]
[1737880401420,1.57265786,3333.5,3332.8,0.5072]
[1737880401421,0.60022,3332.9,3332.8,0.5072]
[1737880401634,1.57276786,3332.9,3332.8,0.5072]
[1737880402332,0.97254786,3332.9,3332.7,0.5135]
[1737880402527,2.57257786,3332.9,3332.7,0.5135]
[1737880404424,2.57257786,3332.9,3332.5,0.00449444]
[1737880404425,0.60027,3332.6,3332.5,0.00449444]
[1737880404933,4.17085672,3332.6,3332.5,0.00449444]
[1737880405530,4.17085672,3332.6,3332.5,1e-08]
[1737880405733,4.17085672,3332.6,3331.8,0.4868]
[1737880405734,3.57058672,3332.6,3331.8,0.4868]
[1737880405921,0.97254786,3331.9,3331.8,0.9697]
[1737880407227,0.97254786,3331.9,3331.8,0.4829]
[1737880407834,0.97254786,3331.9,3330.6,0.0053803]
[1737880407835,9.47792539,3331.9,3330.6,0.0053803]
[1737880408126,5.26573449,3331.5,3330.6,0.4882803]
[1737880408327,0.36205641,3331.4,3330.7,0.4899]
[1737880408529,0.00450132,3331.4,3330.7,0.4899]
[1737880408733,0.00450132,3331.4,3331.3,0.60051]
[1737880409333,0.00450132,3331.4,3331.3,41.40051]
[1737880410032,4.1698,3331.9,3331.7,0.60043]
[1737880410033,0.962,3331.9,3331.7,0.60043]
[1737880410230,3.80814,3332.3,3331.7,0.60043]
[1737880410231,3.2078,3332.3,3331.8,0.9714]
[1737880410433,2.57313449,3332.7,3331.8,0.9714]
[1737880410628,2.57313449,3332.7,3332.3,0.60032]
[1737880410834,3.17339449,3332.7,3332.4,0.9805]
[1737880411536,0.60028,3332.6,3332.4,0.9805]
[1737880413036,2.57313449,3332.7,3332.4,0.9805]
[1737880413229,2.57313449,3332.7,3332.5,0.5146]
[1737880413435,2.05793449,3332.7,3332.5,0.5146]
[1737880414828,2.05793449,3332.7,3332.5,1.11488]
[1737880416535,3.21230132,3332.9,3332.6,0.60027]
[1737880416735,3.21230132,3332.9,3332.5,1.11488]
[1737880416736,3.81252132,3332.9,3332.5,1.11488]
[1737880417134,3.81252132,3332.9,3332.6,0.60027]
[1737880417432,3.81252132,3332.9,3332.5,0.5146]
[1737880417635,3.81252132,3332.9,3332.5,1.11488]
[1737880418430,3.21230132,3332.9,3332.6,0.60026]
[1737880418631,0.00450132,3332.9,3332.6,0.60026]
[1737880419030,0.00450132,3332.9,3332.5,0.5146]
[1737880419230,0.00450132,3332.9,3332.5,1.11488]
[1737880419632,0.00450132,3332.9,3332.6,40.8]
[1737880420532,0.00450132,3332.9,3332.6,0.60026]
[1737880420928,0.00450132,3332.9,3332.6,41.40026]
[1737880421637,0.00450132,3332.9,3332.6,0.60026]
[1737880421841,0.00450132,3332.9,3332.5,1.11488]
[1737880422041,2.05793449,3332.7,3332.4,3.2078]
[1737880422342,1.44072876,3332.6,3332.4,3.2078]
[1737880422536,0.361518,3332.5,3332.4,3.2078]
[1737880424339,0.840518,3332.6,3332.4,3.2078]
[1737880425841,0.60029,3332.5,3332.4,3.2078]
[1737880426045,0.961808,3332.5,3332.4,3.2078]
[1737880429249,0.60029,3332.5,3332.4,3.2078]
[1737880430041,0.60033,3332.3,3332.2,0.00450132]
[1737880431945,1.11313,3332.3,3332.2,0.00450132]
[1737880434452,1.11313,3332.3,3331.5,0.60041]
[1737880434453,0.86381087,3332.3,3331.5,0.60041]
[1737880434648,2.05793449,3331.8,3331.5,1.11871]
[1737880435161,0.5162,3331.7,3331.5,1.11871]
[1737880436355,0.5162,3331.7,3331.6,0.6004]
[1737880437446,0.5162,3331.7,3331.5,0.5183]
[1737880437947,0.5162,3331.7,3331.4,3.80823]
[1737880438149,0.9903,3331.7,3331.5,0.60042]
[1737880438847,0.9903,3331.7,3331.4,3.2078]
[1737880439047,0.9903,3331.7,3331.4,3.80822]
[1737880439250,1.59068,3331.7,3331.4,3.80822]
[1737880439455,0.9903,3331.7,3331.4,3.2078]
[1737880439655,0.60045,3331.4,3331.1,40.8]
[1737880439956,0.60051,3331.0,3330.9,3.7179]
[1737880440149,0.6005,3331.1,3330.9,3.7179]
[1737880440349,0.60051,3331.0,3330.9,3.7179]
[1737880440553,0.9514,3331.1,3330.9,3.7179]
[1737880440749,0.9514,3331.1,3330.9,3.2078]
[1737880441054,0.9514,3331.1,3330.2,0.00580161]
[1737880441055,0.60063,3330.3,3330.2,0.00580161]
[1737880441251,3.2078,3330.3,3330.2,0.00580161]
[1737880441649,3.80843,3330.3,3330.2,0.00580161]
[1737880441957,4.77943,3330.3,3329.9,0.5101]
[1737880442252,0.60068,3330.1,3329.9,0.5101]
[1737880442453,4.1788,3330.3,3329.9,0.5101]
[1737880442855,4.77944,3330.3,3329.9,0.5101]
[1737880443050,0.60069,3330.0,3329.9,0.5101]
[1737880443560,2.05793449,3330.2,3329.5,0.4749]
[1737880443751,3.80851,3329.9,3329.6,0.5188]
[1737880443954,3.2078,3329.9,3329.6,0.5188]
[1737880444754,3.2078,3330.3,3329.9,0.60069]
[1737880444962,3.2078,3330.3,3329.7,40.8]
[1737880445462,3.2078,3330.3,3330.2,0.60065]
[1737880445860,0.00450132,3330.6,3330.5,0.6006]
[1737880446468,0.00450132,3330.6,3329.8,1.74664139]
[1737880446469,0.00450132,3330.6,3330.1,0.60065]
[1737880446763,2.65853449,3330.5,3330.2,0.5242]
[1737880446952,2.65853449,3330.5,3329.6,3.2078]
[1737880446953,0.60071,3329.9,3329.6,3.2078]
[1737880447155,2.05793449,3330.1,3329.7,0.5185]
[1737880447357,0.60069,3330.0,3329.7,0.5185]
[1737880448166,2.65865449,3329.8,3329.7,0.5185]
[1737880449067,2.05793449,3329.8,3329.7,0.5185]
[1737880449568,2.65865449,3329.8,3329.7,0.5185]
[1737880450170,2.05793449,3329.8,3329.7,0.5185]
[1737880450563,5.26573449,3329.8,3329.3,40.8]
[1737880450773,2.05793449,3329.5,3329.3,40.8]
[1737880451273,5.26573449,3329.8,3329.4,0.60078]
[1737880451471,5.86646449,3329.8,3329.5,0.5133]
[1737880451967,5.86646449,3329.8,3329.0,0.5001]
[1737880451968,5.26573449,3329.8,3329.0,0.5001]
[1737880452172,0.4897,3330.0,3329.0,0.5001]
[1737880452173,2.05793449,3329.1,3329.0,0.5001]
[1737880452564,3.2078,3329.3,3329.2,0.60083]
[1737880452775,0.978,3329.6,3329.3,0.6008]
[1737880453071,0.978,3329.6,3329.4,1.10898]
[1737880453271,0.978,3329.6,3328.2,3.2078]
[1737880453571,5.26573449,3329.1,3328.6,0.51]
[1737880453870,5.26573449,3329.1,3328.7,40.8]
[1737880454068,5.86659449,3329.1,3328.7,40.8]
[1737880454467,3.2078,3329.1,3328.6,0.51]
[1737880454673,3.2078,3329.1,3329.0,0.60087]
[1737880455374,2.05793449,3329.4,3329.2,0.60082]
[1737880455575,2.05793449,3329.4,3329.3,0.5204]
[1737880455775,2.05793449,3329.4,3329.3,1.0075]
[1737880455977,2.05793449,3329.4,3329.3,1.60831]
[1737880456168,2.05793449,3329.4,3329.3,1.0075]
[1737880459876,2.65872449,3329.4,3329.3,1.0075]
[1737880460670,2.65872449,3329.4,3329.1,0.00265329]
[1737880460671,2.05793449,3329.4,3329.1,0.00265329]
[1737880460979,0.60083,3329.2,3329.1,0.00265329]
[1737880463369,0.60102,3328.2,3327.8,0.60108]
[1737880463675,3.2078,3328.1,3327.9,1.0137]
[1737880463877,2.05793449,3328.0,3327.9,1.0137]
[1737880464373,2.05793449,3328.0,3327.3,3.2078]
[1737880464576,2.05793449,3327.4,3326.9,3.2078]
[1737880464767,3.2078,3327.7,3327.0,1.4698]
[1737880464768,5.26573449,3327.7,3327.0,1.4698]
[1737880464974,3.05393449,3328.0,3327.6,0.6011]
[1737880465174,5.26573449,3327.7,3326.5,3.2078]
[1737880465370,3.2078,3327.3,3327.2,0.60119]